fUST/lending_fUST_20260506
["ID","MTS","AMOUNT","RATE_DAILY","PERIOD"]
[421637696,1778003447000,-500.0,0.00012602,2]
[421637704,1778003447000,-500.0,0.00012602,2]
[421637709,1778003447000,-500.0,0.00012602,2]
[421637706,1778003447000,-500.0,0.00012602,2]
[421637711,1778003447000,-4497.86,0.00012602,2]
[421637627,1778003447000,-500.0,0.00012602,2]
[421637699,1778003447000,-500.0,0.00012602,2]
[421637663,1778003447000,-500.0,0.00012602,2]
[421637692,1778003447000,-500.0,0.00012602,2]
[421637666,1778003447000,-500.0,0.00012602,2]
[421637660,1778003447000,-707.24,0.00012602,2]
[421637626,1778003447000,-500.0,0.00012602,2]
[421637640,1778003447000,-500.0,0.00012602,2]
[421637642,1778003447000,-367.20490719,0.00012602,2]
[421637644,1778003447000,-500.0,0.00012602,2]
[421637648,1778003447000,-500.0,0.00012602,2]
[421637629,1778003447000,-500.0,0.00012602,2]
[421637631,1778003447000,-500.0,0.00012602,2]
[421637646,1778003447000,-500.0,0.00012602,2]
[421637635,1778003447000,-765.11,0.00012602,2]
[421637636,1778003447000,-611.29,0.00012602,2]
[421637633,1778003447000,-500.0,0.00012602,2]
[421637638,1778003447000,-500.0,0.00012602,2]
[421637652,1778003447000,-500.0,0.00012602,2]
[421637656,1778003447000,-500.0,0.00012602,2]
[421637658,1778003447000,-500.0,0.00012602,2]
[421637624,1778003447000,-2051.58,0.00012602,2]
[421637797,1778003448000,-821.87,0.00012602,2]
[421637777,1778003448000,-500.0,0.00012602,2]
[421637790,1778003448000,-500.0,0.00012602,2]
[421637792,1778003448000,-500.0,0.00012602,2]
[421637795,1778003448000,-500.0,0.00012602,2]
[421637779,1778003448000,-3348.13,0.00012602,2]
[421637782,1778003448000,-500.0,0.00012602,2]
[421637775,1778003448000,-941.67,0.00012602,2]
[421637807,1778003448000,-3179.61,0.00012602,2]
[421637802,1778003448000,-500.0,0.00012602,2]
[421637805,1778003448000,-500.0,0.00012602,2]
[421637800,1778003448000,-232.49384667,0.00012602,2]
[421637813,1778003448000,-1469.1,0.00012602,2]
[421637816,1778003448000,-500.0,0.00012602,2]
[421637810,1778003448000,-3532.8,0.00012602,2]
[421637818,1778003448000,-500.0,0.00012602,2]
[421637772,1778003448000,-4458.21,0.00012602,2]
[421637787,1778003448000,-500.0,0.00012602,2]
[421637770,1778003448000,-500.0,0.00012602,2]
[421637718,1778003448000,-500.0,0.00012602,2]
[421637762,1778003448000,-500.0,0.00012602,2]
[421637714,1778003448000,-500.0,0.00012602,2]
[421637716,1778003448000,-4103.06,0.00012602,2]
[421637821,1778003448000,-2044.53,0.00012602,2]
[421637721,1778003448000,-500.0,0.00012602,2]
[421637723,1778003448000,-500.0,0.00012602,2]
[421637726,1778003448000,-500.0,0.00012602,2]
[421637730,1778003448000,-581.01,0.00012602,2]
[421637728,1778003448000,-500.0,0.00012602,2]
[421637735,1778003448000,-762.06,0.00012602,2]
[421637733,1778003448000,-3517.54,0.00012602,2]
[421637738,1778003448000,-781.68,0.00012602,2]
[421637740,1778003448000,-500.0,0.00012602,2]
[421637743,1778003448000,-500.0,0.00012602,2]
[421637750,1778003448000,-500.0,0.00012602,2]
[421637747,1778003448000,-500.0,0.00012602,2]
[421637753,1778003448000,-10346.12,0.00012602,2]
[421637757,1778003448000,-2546.95,0.00012602,2]
[421637759,1778003448000,-500.0,0.00012602,2]
[421637765,1778003448000,-500.0,0.00012602,2]
[421637767,1778003448000,-500.0,0.00012602,2]
[421637831,1778003448000,-500.0,0.00012602,2]
[421637784,1778003448000,-7664.91,0.00012602,2]
[421637824,1778003448000,-500.0,0.00012602,2]
[421637875,1778003448000,-500.0,0.00012602,2]
[421637879,1778003448000,-500.0,0.00012602,2]
[421637863,1778003448000,-500.0,0.00012602,2]
[421637880,1778003448000,-500.0,0.00012602,2]
[421637877,1778003448000,-741.77,0.00012602,2]
[421637861,1778003448000,-3243.06,0.00012602,2]
[421637869,1778003448000,-500.0,0.00012602,2]
[421637882,1778003448000,-535.56,0.00012602,2]
[421637873,1778003448000,-994.12,0.00012602,2]
[421637871,1778003448000,-930.28,0.00012602,2]
[421637867,1778003448000,-500.0,0.00012602,2]
[421637883,1778003448000,-500.0,0.00012602,2]
[421637885,1778003448000,-3148.82,0.00012602,2]
[421637884,1778003448000,-500.0,0.00012602,2]
[421637889,1778003448000,-604.73,0.00012602,2]
[421637891,1778003448000,-11891.56,0.00012602,2]
[421637887,1778003448000,-393.81937951,0.00012602,2]
[421637826,1778003448000,-500.0,0.00012602,2]
[421637865,1778003448000,-500.0,0.00012602,2]
[421637857,1778003448000,-570.49171566,0.00012602,2]
[421637881,1778003448000,-500.0,0.00012602,2]
[421637858,1778003448000,-4642.04,0.00012602,2]
[421637829,1778003448000,-2793.73,0.00012602,2]
[421637856,1778003448000,-500.0,0.00012602,2]
[421637834,1778003448000,-723.96,0.00012602,2]
[421637837,1778003448000,-500.0,0.00012602,2]
[421637839,1778003448000,-500.0,0.00012602,2]
[421637845,1778003448000,-500.0,0.00012602,2]
[421637846,1778003448000,-2222.53,0.00012602,2]
[421637843,1778003448000,-647.9511514,0.00012602,2]
[421637841,1778003448000,-224.91519599,0.00012602,2]
[421637840,1778003448000,-3021.79,0.00012602,2]
[421637849,1778003448000,-500.0,0.00012602,2]
[421637848,1778003448000,-500.0,0.00012602,2]
[421637850,1778003448000,-2465.3,0.00012602,2]
[421637852,1778003448000,-6145.49,0.00012602,2]
[421637851,1778003448000,-500.0,0.00012602,2]
[421637854,1778003448000,-500.0,0.00012602,2]
[421637853,1778003448000,-1161.19,0.00012602,2]
[421637855,1778003448000,-11330.71,0.00012602,2]
[421637847,1778003448000,-55635.53,0.00012602,2]
[421637859,1778003448000,-500.0,0.00012602,2]
[421637934,1778003449000,-500.0,0.00012876,2]
[421637928,1778003449000,-500.0,0.00012876,2]
[421637933,1778003449000,-1439.03,0.00012876,2]
[421637932,1778003449000,-500.0,0.00012876,2]
[421637926,1778003449000,-500.0,0.00012876,2]
[421637931,1778003449000,-500.0,0.00012876,2]
[421637936,1778003449000,-500.0,0.00012876,2]
[421637935,1778003449000,-612.92,0.00012876,2]
[421637938,1778003449000,-500.0,0.00012876,2]
[421637929,1778003449000,-500.0,0.00012876,2]
[421637937,1778003449000,-500.0,0.00012876,2]
[421637930,1778003449000,-500.0,0.00012876,2]
[421637941,1778003449000,-500.0,0.00012876,2]
[421637948,1778003449000,-585.89,0.00012876,2]
[421637942,1778003449000,-500.0,0.00012876,2]
[421637944,1778003449000,-277.9653694,0.00012876,2]
[421637943,1778003449000,-653.55,0.00012876,2]
[421637940,1778003449000,-500.0,0.00012876,2]
[421637945,1778003449000,-500.0,0.00012876,2]
[421637947,1778003449000,-500.0,0.00012876,2]
[421637946,1778003449000,-500.0,0.00012876,2]
[421637950,1778003449000,-500.0,0.00012876,2]
[421637949,1778003449000,-500.0,0.00012876,2]
[421637960,1778003449000,-500.0,0.00012876,2]
[421637962,1778003449000,-500.0,0.00012876,2]
[421637927,1778003449000,-569.87,0.00012876,2]
[421637939,1778003449000,-500.0,0.00012876,2]
[421637916,1778003449000,-337.5809232,0.00012875,2]
[421637913,1778003449000,-224.531,0.00012602,2]
[421637923,1778003449000,-500.0,0.00012876,2]
[421637893,1778003449000,-500.0,0.00012602,2]
[421637900,1778003449000,-500.0,0.00012602,2]
[421637897,1778003449000,-500.0,0.00012602,2]
[421637898,1778003449000,-1397.44,0.00012602,2]
[421637895,1778003449000,-4621.59,0.00012602,2]
[421637899,1778003449000,-500.0,0.00012602,2]
[421637902,1778003449000,-500.0,0.00012602,2]
[421637912,1778003449000,-558.47,0.00012602,2]
[421637901,1778003449000,-500.0,0.00012602,2]
[421637961,1778003449000,-500.0,0.00012876,2]
[421637904,1778003449000,-736.69,0.00012602,2]
[421637905,1778003449000,-500.0,0.00012602,2]
[421637906,1778003449000,-500.0,0.00012602,2]
[421637911,1778003449000,-10927.35,0.00012602,2]
[421637908,1778003449000,-500.0,0.00012602,2]
[421637909,1778003449000,-500.0,0.00012602,2]
[421637907,1778003449000,-4485.23,0.00012602,2]
[421637910,1778003449000,-2427.09,0.00012602,2]
[421637921,1778003449000,-500.0,0.00012876,2]
[421637925,1778003449000,-500.0,0.00012876,2]
[421637922,1778003449000,-530.53581398,0.00012876,2]
[421637914,1778003449000,-1559.0,0.00012604,2]
[421637920,1778003449000,-2569.0426,0.00012876,2]
[421637924,1778003449000,-308.12517967,0.00012876,2]
[421637919,1778003449000,-2569.0426,0.00012876,2]
[421637915,1778003449000,-5752.54140822,0.00012776,2]
[421637918,1778003449000,-500.0,0.00012876,2]
[421637917,1778003449000,-154.28177196,0.00012876,2]
[421637951,1778003449000,-500.0,0.00012876,2]
[421637903,1778003449000,-1408.92,0.00012602,2]
[421637952,1778003449000,-500.0,0.00012876,2]
[421637988,1778003449000,-500.0,0.00012876,2]
[421637992,1778003449000,-500.0,0.00012876,2]
[421637989,1778003449000,-500.0,0.00012876,2]
[421637990,1778003449000,-500.0,0.00012876,2]
[421637991,1778003449000,-500.0,0.00012876,2]
[421637993,1778003449000,-581.33,0.00012876,2]
[421637994,1778003449000,-500.0,0.00012876,2]
[421637996,1778003449000,-500.0,0.00012876,2]
[421637995,1778003449000,-500.0,0.00012876,2]
[421637997,1778003449000,-336.55848772,0.00012876,2]
[421637998,1778003449000,-782.94,0.00012876,2]
[421638004,1778003449000,-500.0,0.00012876,2]
[421638001,1778003449000,-594.87,0.00012876,2]
[421638002,1778003449000,-500.0,0.00012876,2]
[421638003,1778003449000,-500.0,0.00012876,2]
[421638006,1778003449000,-509.59,0.00012876,2]
[421638008,1778003449000,-500.0,0.00012876,2]
[421637999,1778003449000,-500.0,0.00012876,2]
[421638000,1778003449000,-1859.36,0.00012876,2]
[421638007,1778003449000,-500.0,0.00012876,2]
[421638009,1778003449000,-500.0,0.00012876,2]
[421638010,1778003449000,-498.98,0.00012876,2]
[421638012,1778003449000,-292.42,0.00012876,2]
[421638011,1778003449000,-2507.88,0.00012876,2]
[421638013,1778003449000,-867.51,0.00012876,2]
[421638014,1778003449000,-672.24,0.00012876,2]
[421637958,1778003449000,-500.0,0.00012876,2]
[421637987,1778003449000,-500.0,0.00012876,2]
[421637977,1778003449000,-500.0,0.00012876,2]
[421638005,1778003449000,-2602.65,0.00012876,2]
[421637980,1778003449000,-938.61,0.00012876,2]
[421637979,1778003449000,-1743.28,0.00012876,2]
[421637955,1778003449000,-500.0,0.00012876,2]
[421637953,1778003449000,-670.24,0.00012876,2]
[421637956,1778003449000,-500.0,0.00012876,2]
[421637954,1778003449000,-500.0,0.00012876,2]
[421637957,1778003449000,-500.0,0.00012876,2]
[421637959,1778003449000,-500.0,0.00012876,2]
[421637963,1778003449000,-1797.07,0.00012876,2]
[421637966,1778003449000,-526.57,0.00012876,2]
[421637967,1778003449000,-500.0,0.00012876,2]
[421637975,1778003449000,-738.88,0.00012876,2]
[421637964,1778003449000,-500.0,0.00012876,2]
[421637968,1778003449000,-572.21,0.00012876,2]
[421637965,1778003449000,-594.63,0.00012876,2]
[421637969,1778003449000,-567.95,0.00012876,2]
[421637978,1778003449000,-500.0,0.00012876,2]
[421637974,1778003449000,-680.9,0.00012876,2]
[421637976,1778003449000,-500.0,0.00012876,2]
[421637985,1778003449000,-500.0,0.00012876,2]
[421637982,1778003449000,-591.6,0.00012876,2]
[421637986,1778003449000,-500.0,0.00012876,2]
[421637983,1778003449000,-500.0,0.00012876,2]
[421637984,1778003449000,-500.0,0.00012876,2]
[421637971,1778003449000,-519.47,0.00012876,2]
[421637973,1778003449000,-500.0,0.00012876,2]
[421637970,1778003449000,-1000.0,0.00012876,2]
[421637972,1778003449000,-500.0,0.00012876,2]
[421637981,1778003449000,-500.0,0.00012876,2]
[421638057,1778003450000,-7415.098496,0.00012876,2]
[421638061,1778003450000,-500.0,0.00012876,2]
[421638053,1778003450000,-613.47,0.00012876,2]
[421638054,1778003450000,-858.87,0.00012876,2]
[421638055,1778003450000,-500.0,0.00012876,2]
[421638058,1778003450000,-1188.18,0.00012876,2]
[421638041,1778003450000,-500.0,0.00012876,2]
[421638050,1778003450000,-500.0,0.00012876,2]
[421638051,1778003450000,-500.0,0.00012876,2]
[421638049,1778003450000,-500.0,0.00012876,2]
[421638040,1778003450000,-2068.26,0.00012876,2]
[421638056,1778003450000,-500.0,0.00012876,2]
[421638059,1778003450000,-4257.4,0.00012876,2]
[421638052,1778003450000,-500.0,0.00012876,2]
[421638067,1778003450000,-599.56733107,0.00012876,2]
[421638063,1778003450000,-500.0,0.00012876,2]
[421638071,1778003450000,-684.412688,0.00012876,2]
[421638072,1778003450000,-500.0,0.00012876,2]
[421638073,1778003450000,-792.79,0.00012876,2]
[421638066,1778003450000,-500.0,0.00012876,2]
[421638065,1778003450000,-500.0,0.00012876,2]
[421638062,1778003450000,-500.0,0.00012876,2]
[421638064,1778003450000,-500.0,0.00012876,2]
[421638074,1778003450000,-500.0,0.00012876,2]
[421638070,1778003450000,-500.0,0.00012876,2]
[421638069,1778003450000,-500.0,0.00012876,2]
[421638068,1778003450000,-500.0,0.00012876,2]
[421638042,1778003450000,-500.0,0.00012876,2]
[421638060,1778003450000,-500.0,0.00012876,2]
[421638039,1778003450000,-500.0,0.00012876,2]
[421638016,1778003450000,-2000.54,0.00012876,2]
[421638038,1778003450000,-500.0,0.00012876,2]
[421638080,1778003450000,-587.16,0.00012876,2]
[421638015,1778003450000,-325.43382006,0.00012876,2]
[421638017,1778003450000,-500.0,0.00012876,2]
[421638022,1778003450000,-566.36,0.00012876,2]
[421638020,1778003450000,-500.0,0.00012876,2]
[421638018,1778003450000,-500.0,0.00012876,2]
[421638019,1778003450000,-500.0,0.00012876,2]
[421638021,1778003450000,-682.54,0.00012876,2]
[421638023,1778003450000,-500.0,0.00012876,2]
[421638026,1778003450000,-876.05,0.00012876,2]
[421638025,1778003450000,-500.0,0.00012876,2]
[421638024,1778003450000,-500.0,0.00012876,2]
[421638030,1778003450000,-500.0,0.00012876,2]
[421638037,1778003450000,-1237.4,0.00012876,2]
[421638035,1778003450000,-500.0,0.00012876,2]
[421638034,1778003450000,-500.0,0.00012876,2]
[421638033,1778003450000,-1038.46,0.00012876,2]
[421638029,1778003450000,-1445.54,0.00012876,2]
[421638027,1778003450000,-500.0,0.00012876,2]
[421638031,1778003450000,-500.0,0.00012876,2]
[421638028,1778003450000,-500.0,0.00012876,2]
[421638043,1778003450000,-500.0,0.00012876,2]
[421638044,1778003450000,-2705.54,0.00012876,2]
[421638047,1778003450000,-548.11024713,0.00012876,2]
[421638045,1778003450000,-500.0,0.00012876,2]
[421638048,1778003450000,-500.0,0.00012876,2]
[421638036,1778003450000,-261.78081276,0.00012876,2]
[421638046,1778003450000,-500.0,0.00012876,2]
[421638032,1778003450000,-500.0,0.00012876,2]
[421638082,1778003450000,-1246.96,0.00012876,2]
[421638075,1778003450000,-500.0,0.00012876,2]
[421638081,1778003450000,-11374.29885,0.00012876,2]
[421638108,1778003450000,-500.0,0.00012876,2]
[421638113,1778003450000,-555.12,0.00012876,2]
[421638115,1778003450000,-500.0,0.00012876,2]
[421638114,1778003450000,-500.0,0.00012876,2]
[421638118,1778003450000,-500.0,0.00012876,2]
[421638119,1778003450000,-500.0,0.00012876,2]
[421638120,1778003450000,-4016.4,0.00012876,2]
[421638116,1778003450000,-2421.53,0.00012876,2]
[421638117,1778003450000,-500.0,0.00012876,2]
[421638121,1778003450000,-228.20024525,0.00012876,2]
[421638122,1778003450000,-500.0,0.00012876,2]
[421638125,1778003450000,-629.59,0.00012876,2]
[421638124,1778003450000,-500.0,0.00012876,2]
[421638123,1778003450000,-500.0,0.00012876,2]
[421638127,1778003450000,-500.0,0.00012876,2]
[421638129,1778003450000,-500.0,0.00012876,2]
[421638126,1778003450000,-500.0,0.00012876,2]
[421638128,1778003450000,-500.0,0.00012876,2]
[421638130,1778003450000,-500.0,0.00012876,2]
[421638134,1778003450000,-500.0,0.00012876,2]
[421638135,1778003450000,-500.0,0.00012876,2]
[421638132,1778003450000,-500.0,0.00012876,2]
[421638131,1778003450000,-500.0,0.00012876,2]
[421638133,1778003450000,-589.69,0.00012876,2]
[421638136,1778003450000,-500.0,0.00012876,2]
[421638138,1778003450000,-755.82,0.00012876,2]
[421638137,1778003450000,-500.0,0.00012876,2]
[421638140,1778003450000,-709.57,0.00012876,2]
[421638083,1778003450000,-4054.53,0.00012876,2]
[421638107,1778003450000,-500.0,0.00012876,2]
[421638106,1778003450000,-500.0,0.00012876,2]
[421638139,1778003450000,-500.0,0.00012876,2]
[421638101,1778003450000,-500.0,0.00012876,2]
[421638102,1778003450000,-500.0,0.00012876,2]
[421638084,1778003450000,-2123.89,0.00012876,2]
[421638086,1778003450000,-500.0,0.00012876,2]
[421638077,1778003450000,-601.77,0.00012876,2]
[421638085,1778003450000,-1856.52,0.00012876,2]
[421638076,1778003450000,-783.566813,0.00012876,2]
[421638079,1778003450000,-500.0,0.00012876,2]
[421638078,1778003450000,-785.91,0.00012876,2]
[421638088,1778003450000,-500.0,0.00012876,2]
[421638093,1778003450000,-500.0,0.00012876,2]
[421638090,1778003450000,-500.0,0.00012876,2]
[421638096,1778003450000,-500.0,0.00012876,2]
[421638098,1778003450000,-552.86,0.00012876,2]
[421638089,1778003450000,-500.0,0.00012876,2]
[421638087,1778003450000,-500.0,0.00012876,2]
[421638095,1778003450000,-500.0,0.00012876,2]
[421638099,1778003450000,-500.0,0.00012876,2]
[421638105,1778003450000,-500.0,0.00012876,2]
[421638104,1778003450000,-500.0,0.00012876,2]
[421638100,1778003450000,-1492.19,0.00012876,2]
[421638111,1778003450000,-1328.28,0.00012876,2]
[421638109,1778003450000,-1791.35,0.00012876,2]
[421638112,1778003450000,-500.0,0.00012876,2]
[421638103,1778003450000,-500.0,0.00012876,2]
[421638097,1778003450000,-500.0,0.00012876,2]
[421638094,1778003450000,-500.0,0.00012876,2]
[421638092,1778003450000,-687.51,0.00012876,2]
[421638091,1778003450000,-1018.33,0.00012876,2]
[421638110,1778003450000,-893.4,0.00012876,2]
[421638180,1778003451000,-500.0,0.00012876,2]
[421638182,1778003451000,-10797.99,0.00012876,2]
[421638181,1778003451000,-500.0,0.00012876,2]
[421638179,1778003451000,-500.0,0.00012876,2]
[421638177,1778003451000,-1693.16,0.00012876,2]
[421638173,1778003451000,-593.98,0.00012876,2]
[421638188,1778003451000,-519.19,0.00012876,2]
[421638189,1778003451000,-500.0,0.00012876,2]
[421638170,1778003451000,-373.16192867,0.00012876,2]
[421638175,1778003451000,-500.0,0.00012876,2]
[421638183,1778003451000,-500.0,0.00012876,2]
[421638178,1778003451000,-500.0,0.00012876,2]
[421638187,1778003451000,-500.0,0.00012876,2]
[421638200,1778003451000,-856.15,0.00012876,2]
[421638184,1778003451000,-548.92,0.00012876,2]
[421638185,1778003451000,-500.0,0.00012876,2]
[421638190,1778003451000,-500.0,0.00012876,2]
[421638192,1778003451000,-2561.92,0.00012876,2]
[421638193,1778003451000,-500.0,0.00012876,2]
[421638198,1778003451000,-500.0,0.00012876,2]
[421638191,1778003451000,-500.0,0.00012876,2]
[421638194,1778003451000,-500.0,0.00012876,2]
[421638201,1778003451000,-500.0,0.00012876,2]
[421638197,1778003451000,-500.0,0.00012876,2]
[421638199,1778003451000,-500.0,0.00012876,2]
[421638195,1778003451000,-500.0,0.00012876,2]
[421638196,1778003451000,-500.0,0.00012876,2]
[421638171,1778003451000,-571.96,0.00012876,2]
[421638186,1778003451000,-500.0,0.00012876,2]
[421638172,1778003451000,-992.61,0.00012876,2]
[421638154,1778003451000,-500.0,0.00012876,2]
[421638176,1778003451000,-500.0,0.00012876,2]
[421638203,1778003451000,-500.0,0.00012876,2]
[421638148,1778003451000,-500.0,0.00012876,2]
[421638149,1778003451000,-500.0,0.00012876,2]
[421638144,1778003451000,-500.0,0.00012876,2]
[421638142,1778003451000,-500.0,0.00012876,2]
[421638150,1778003451000,-500.0,0.00012876,2]
[421638145,1778003451000,-500.0,0.00012876,2]
[421638143,1778003451000,-500.0,0.00012876,2]
[421638146,1778003451000,-817.42,0.00012876,2]
[421638141,1778003451000,-500.0,0.00012876,2]
[421638147,1778003451000,-500.0,0.00012876,2]
[421638152,1778003451000,-500.0,0.00012876,2]
[421638162,1778003451000,-611.81,0.00012876,2]
[421638151,1778003451000,-500.0,0.00012876,2]
[421638163,1778003451000,-500.0,0.00012876,2]
[421638153,1778003451000,-4241.83,0.00012876,2]
[421638155,1778003451000,-500.0,0.00012876,2]
[421638157,1778003451000,-244.26377555,0.00012876,2]
[421638156,1778003451000,-500.0,0.00012876,2]
[421638159,1778003451000,-500.0,0.00012876,2]
[421638158,1778003451000,-500.0,0.00012876,2]
[421638161,1778003451000,-500.0,0.00012876,2]
[421638160,1778003451000,-1158.39,0.00012876,2]
[421638164,1778003451000,-500.0,0.00012876,2]
[421638169,1778003451000,-500.0,0.00012876,2]
[421638168,1778003451000,-500.0,0.00012876,2]
[421638174,1778003451000,-500.0,0.00012876,2]
[421638165,1778003451000,-471.52286495,0.00012876,2]
[421638167,1778003451000,-500.0,0.00012876,2]
[421638166,1778003451000,-1467.3,0.00012876,2]
[421638211,1778003451000,-500.0,0.00012876,2]
[421638210,1778003451000,-500.0,0.00012876,2]
[421638212,1778003451000,-395.37171193,0.00012876,2]
[421638235,1778003451000,-500.0,0.00012876,2]
[421638240,1778003451000,-500.0,0.00012876,2]
[421638241,1778003451000,-500.0,0.00012876,2]
[421638242,1778003451000,-500.0,0.00012876,2]
[421638245,1778003451000,-500.0,0.00012876,2]
[421638250,1778003451000,-220.64727423,0.00012876,2]
[421638244,1778003451000,-1768.37,0.00012876,2]
[421638246,1778003451000,-500.0,0.00012876,2]
[421638243,1778003451000,-500.0,0.00012876,2]
[421638249,1778003451000,-3434.49,0.00012876,2]
[421638247,1778003451000,-500.0,0.00012876,2]
[421638253,1778003451000,-500.0,0.00012876,2]
[421638248,1778003451000,-3348.2,0.00012876,2]
[421638252,1778003451000,-501.83237606,0.00012876,2]
[421638264,1778003451000,-500.0,0.00012876,2]
[421638263,1778003451000,-2051.58,0.00012876,2]
[421638267,1778003451000,-500.0,0.00012876,2]
[421638265,1778003451000,-500.0,0.00012876,2]
[421638266,1778003451000,-500.0,0.00012876,2]
[421638254,1778003451000,-500.0,0.00012876,2]
[421638256,1778003451000,-500.0,0.00012876,2]
[421638255,1778003451000,-500.0,0.00012876,2]
[421638260,1778003451000,-6852.98,0.00012876,2]
[421638259,1778003451000,-500.0,0.00012876,2]
[421638262,1778003451000,-500.0,0.00012876,2]
[421638258,1778003451000,-1106.49,0.00012876,2]
[421638257,1778003451000,-500.0,0.00012876,2]
[421638261,1778003451000,-937.22,0.00012876,2]
[421638202,1778003451000,-500.0,0.00012876,2]
[421638233,1778003451000,-500.0,0.00012876,2]
[421638232,1778003451000,-224.98641192,0.00012876,2]
[421638251,1778003451000,-10377.59,0.00012876,2]
[421638237,1778003451000,-5306.68,0.00012876,2]
[421638213,1778003451000,-500.0,0.00012876,2]
[421638238,1778003451000,-12053.66,0.00012876,2]
[421638205,1778003451000,-500.0,0.00012876,2]
[421638206,1778003451000,-500.0,0.00012876,2]
[421638204,1778003451000,-500.0,0.00012876,2]
[421638207,1778003451000,-500.0,0.00012876,2]
[421638214,1778003451000,-500.0,0.00012876,2]
[421638209,1778003451000,-500.0,0.00012876,2]
[421638268,1778003451000,-500.0,0.00012876,2]
[421638215,1778003451000,-393.61640317,0.00012876,2]
[421638223,1778003451000,-500.0,0.00012876,2]
[421638221,1778003451000,-500.0,0.00012876,2]
[421638218,1778003451000,-500.0,0.00012876,2]
[421638216,1778003451000,-500.0,0.00012876,2]
[421638217,1778003451000,-320.08522988,0.00012876,2]
[421638208,1778003451000,-500.0,0.00012876,2]
[421638220,1778003451000,-500.0,0.00012876,2]
[421638236,1778003451000,-714.8637,0.00012876,2]
[421638219,1778003451000,-1376.41,0.00012876,2]
[421638228,1778003451000,-500.0,0.00012876,2]
[421638231,1778003451000,-500.0,0.00012876,2]
[421638230,1778003451000,-500.0,0.00012876,2]
[421638239,1778003451000,-500.0,0.00012876,2]
[421638229,1778003451000,-500.0,0.00012876,2]
[421638234,1778003451000,-2566.36,0.00012876,2]
[421638225,1778003451000,-500.0,0.00012876,2]
[421638227,1778003451000,-3274.96,0.00012876,2]
[421638222,1778003451000,-500.0,0.00012876,2]
[421638224,1778003451000,-500.0,0.00012876,2]
[421638226,1778003451000,-4237.44,0.00012876,2]
[421638315,1778003452000,-2546.95,0.00012876,2]
[421638311,1778003452000,-500.0,0.00012876,2]
[421638299,1778003452000,-500.0,0.00012876,2]
[421638318,1778003452000,-500.0,0.00012876,2]
[421638308,1778003452000,-762.06,0.00012876,2]
[421638309,1778003452000,-781.68,0.00012876,2]
[421638319,1778003452000,-500.0,0.00012876,2]
[421638317,1778003452000,-500.0,0.00012876,2]
[421638307,1778003452000,-3517.54,0.00012876,2]
[421638305,1778003452000,-500.0,0.00012876,2]
[421638304,1778003452000,-500.0,0.00012876,2]
[421638312,1778003452000,-500.0,0.00012876,2]
[421638306,1778003452000,-581.01,0.00012876,2]